bitfinex/quotes_ETHUSD_20241013
["timestamp","ask_amount","ask_price","bid_price","bid_amount"]
[1728815788358,0.11140448,2474.4,2474.0,4.0419]
[1728815800868,4.15279448,2474.4,2474.0,4.0419]
[1728815801740,0.11140448,2474.4,2474.0,4.0419]
[1728815809008,0.11140448,2474.4,2474.1,0.30250889]
[1728815809237,0.11140448,2474.4,2474.0,4.0419]
[1728815809780,4.15280448,2474.4,2474.0,4.0419]
[1728815817686,0.8298,2474.3,2474.0,4.0419]
[1728815817895,0.93752712,2474.3,2474.0,4.0419]
[1728815818230,0.93752712,2474.3,2473.8,4.04222]
[1728815818379,0.8298,2474.2,2473.8,4.04222]
[1728815818699,0.10766855,2474.1,2473.8,8.08449]
[1728815819074,0.10766855,2474.1,2473.8,8.79981179]
[1728815820914,0.10766855,2474.1,2473.9,4.04212]
[1728815821779,0.10766855,2474.1,2474.0,4.04203]
[1728815822205,1.67837362,2474.4,2474.0,4.04203]
[1728815822518,0.10772712,2474.3,2474.0,4.04203]
[1728815824611,0.10772712,2474.3,2473.9,8.93122885]
[1728815824812,0.10772712,2474.3,2474.0,4.04202]
[1728815827145,0.10772712,2474.3,2474.1,4.80205]
[1728815827342,0.10772712,2474.3,2474.2,4.04171]
[1728815828141,0.84857362,2474.5,2474.2,4.04171]
[1728815828346,0.10368008,2474.3,2474.2,4.04171]
[1728815828512,0.84857362,2474.5,2474.2,5.13783571]
[1728815828714,0.10308368,2474.3,2474.2,5.13783571]
[1728815828950,0.84857362,2474.5,2474.2,5.13783571]
[1728815829127,0.10308368,2474.3,2474.2,5.13783571]
[1728815829329,0.84857362,2474.5,2474.2,5.13783571]
[1728815829528,0.10308368,2474.3,2474.2,4.04171]
[1728815829751,0.84857362,2474.5,2474.2,4.04171]
[1728815829957,0.09961304,2474.3,2474.2,4.04171]
[1728815830558,0.84857362,2474.5,2474.2,4.04171]
[1728815831053,0.09964232,2474.4,2474.2,4.04171]
[1728815833744,0.09964232,2474.4,2474.1,9.69083885]
[1728815833958,0.09964232,2474.4,2474.1,10.93374505]
[1728815834843,0.09964232,2474.4,2474.1,6.0448962]
[1728815835248,0.92064232,2474.4,2474.1,4.80199]
[1728815835446,0.92064232,2474.4,2474.0,4.88897885]
[1728815836055,0.92064232,2474.4,2474.1,0.84699885]
[1728815836275,0.92064232,2474.4,2474.1,4.88885885]
[1728815836583,0.92064232,2474.4,2474.2,4.04164]
[1728815836889,0.09964232,2474.4,2474.2,1.02009171]
[1728815837040,5.71064362,2474.6,2474.1,8.93055885]
[1728815837245,0.0996015,2474.3,2474.2,4.04168]
[1728815837475,1.66957362,2474.6,2474.2,4.82938]
[1728815837743,0.0996015,2474.3,2474.2,4.82938]
[1728815837943,1.66957362,2474.6,2474.2,4.82938]
[1728815838138,0.09961237,2474.3,2474.2,4.82938]
[1728815838373,0.821,2474.6,2474.2,5.92824571]
[1728815838582,0.09961237,2474.3,2474.2,5.67637885]
[1728815838788,0.821,2474.6,2474.2,1.27209404]
[1728815838960,0.821,2474.6,2474.3,0.48439404]
[1728815839159,0.821,2474.6,2474.4,0.48439404]
[1728815839362,0.821,2474.6,2474.3,4.04154]
[1728815839684,0.821,2474.6,2474.4,0.48434289]
[1728815839884,0.821,2474.6,2474.3,4.04154]
[1728815840787,0.821,2474.6,2474.4,0.48426879]
[1728815841080,4.88946362,2474.8,2474.4,4.52564019]
[1728815841286,5.71046362,2474.8,2474.4,4.04137]
[1728815841444,5.71046362,2474.8,2474.4,4.52553158]
[1728815841646,4.86174,2474.8,2474.4,5.18860687]
[1728815841886,5.71031362,2474.8,2474.5,0.48414193]
[1728815842067,0.821,2474.8,2474.5,0.48414193]
[1728815842272,0.821,2474.8,2474.4,5.18853687]
[1728815842472,0.821,2474.8,2474.5,0.48406637]
[1728815843268,0.821,2474.8,2474.4,8.08255]
[1728815843480,0.821,2474.8,2474.4,4.52528338]
[1728815843659,0.821,2474.8,2474.5,5.33902338]
[1728815844199,0.821,2474.8,2474.5,1.29783338]
[1728815844354,0.821,2474.8,2474.5,1.43240822]
[1728815845592,0.09971156,2474.7,2474.5,0.61860822]
[1728815846169,0.821,2474.8,2474.5,0.61860822]
[1728815846475,0.821,2474.8,2474.5,4.65982822]
[1728815846682,0.09971156,2474.7,2474.5,4.65982822]
[1728815846893,0.821,2474.8,2474.5,4.65982822]
[1728815847209,0.09968229,2474.6,2474.5,0.61860822]
[1728815847898,0.821,2474.8,2474.5,0.61860822]
[1728815848097,0.09968229,2474.6,2474.5,0.61860822]
[1728815848285,0.821,2474.8,2474.5,0.61860822]
[1728815848588,0.09968229,2474.6,2474.5,0.61860822]
[1728815848950,0.09968229,2474.6,2474.0,4.69399771]
[1728815848951,4.81209,2474.5,2474.1,1.33081184]
[1728815849177,4.04148,2474.4,2474.1,0.84699885]
[1728815849497,4.14121229,2474.4,2474.0,4.33081184]
[1728815849849,8.18272229,2474.4,2474.0,4.33081184]
[1728815850286,4.14121229,2474.4,2474.0,4.33081184]
[1728815850870,8.18273229,2474.4,2474.0,4.33081184]
[1728815851374,4.14121229,2474.4,2474.0,4.33081184]
[1728815852303,4.14121229,2474.4,2474.0,3.48381299]
[1728815852456,0.7624,2474.3,2474.0,3.48381299]
[1728815852658,0.86210301,2474.3,2474.0,3.0]
[1728815853394,0.86210301,2474.3,2474.0,3.48381299]
[1728815853554,0.86210301,2474.3,2474.0,4.33081184]
[1728815854370,0.86210301,2474.3,2474.0,4.33095792]
[1728815854701,0.86210301,2474.3,2474.0,8.37297792]
[1728815855257,0.86210301,2474.3,2474.1,4.04187]
[1728815855453,0.86210301,2474.3,2474.1,4.52582907]
[1728815855996,0.86210301,2474.3,2474.1,0.48395907]
[1728815857379,0.86210301,2474.3,2474.1,4.52576907]
[1728815859113,0.86210301,2474.3,2474.2,4.04171]
[1728815859611,0.86210301,2474.3,2474.2,4.52566907]
[1728815859934,0.86210301,2474.3,2474.2,0.48395907]
[1728815862332,0.86210301,2474.3,2474.2,0.48409296]
[1728815864428,0.86210301,2474.3,2474.2,0.89354629]
[1728815864629,0.09970301,2474.3,2474.2,0.89354629]
[1728815864831,0.09970301,2474.3,2474.2,4.93525629]
[1728815866013,0.09970301,2474.3,2474.2,5.78225514]
[1728815866639,0.09970301,2474.3,2474.2,1.74054514]
[1728815867932,0.09970301,2474.3,2474.2,5.78225514]
[1728815868821,0.09970301,2474.3,2474.2,4.93525629]
[1728815869022,0.09970301,2474.3,2474.2,5.78225514]
[1728815869681,0.09970301,2474.3,2474.2,6.08503443]
[1728815870373,0.09970301,2474.3,2474.2,2.04332443]
[1728815873374,0.09970301,2474.3,2474.2,2.04332529]
[1728815875073,0.09970301,2474.3,2474.2,6.08503529]
[1728815876777,0.09970301,2474.3,2474.2,5.29816218]
[1728815877009,0.09970301,2474.3,2474.2,7.69139325]
[1728815877217,0.09970301,2474.3,2474.2,7.20717217]
[1728815877726,0.09970301,2474.3,2474.2,7.69141709]
[1728815879281,0.09970301,2474.3,2474.2,6.08504527]
[1728815880918,0.09970301,2474.3,2474.2,6.08498071]
[1728815883388,0.09970301,2474.3,2474.2,6.38765938]
[1728815883730,0.09970301,2474.3,2474.2,6.08503687]
[1728815885164,0.09970301,2474.3,2474.2,6.08506404]
[1728815887022,0.09970301,2474.3,2474.2,5.29816218]
[1728815887229,0.09970301,2474.3,2474.2,5.60082106]
[1728815887577,0.09970301,2474.3,2474.2,6.08510192]
[1728815887746,0.09970301,2474.3,2474.2,6.56935614]
[1728815891675,0.09970301,2474.3,2474.2,6.99285557]
[1728815891875,0.09970301,2474.3,2474.2,6.5701421]
[1728815894098,0.09970301,2474.3,2474.2,5.72235729]
[1728815894650,0.09970301,2474.3,2474.2,6.57055983]
[1728815895154,0.09970301,2474.3,2474.2,6.08630561]
[1728815896317,4.88965362,2474.6,2474.2,2.04459561]
[1728815896486,0.09956205,2474.3,2474.2,1.25765587]
[1728815896690,4.88987362,2474.5,2474.2,2.04541547]
[1728815897002,4.88987362,2474.5,2474.3,0.78775871]
[1728815897306,4.88987362,2474.5,2474.4,0.78775871]
[1728815897866,0.84857362,2474.5,2474.4,0.78775871]
[1728815898111,1.46482503,2474.5,2474.2,1.25765587]
[1728815898323,1.46482503,2474.5,2474.4,0.78773388]
[1728815898483,1.46482503,2474.5,2474.4,0.48475931]
[1728815898810,5.50604503,2474.5,2474.4,0.30297457]
[1728815899023,5.50604503,2474.5,2474.4,0.78773388]
[1728815900287,5.45604503,2474.5,2474.4,0.78773388]
[1728815900981,1.41482503,2474.5,2474.4,0.78773388]
[1728815901613,1.41482503,2474.5,2474.2,1.25765587]
[1728815901811,0.79857362,2474.5,2474.2,1.25765587]
[1728815901998,0.79857362,2474.5,2474.4,0.30298245]
[1728815902313,0.79857362,2474.5,2474.4,0.78775438]
[1728815902514,9.35478044,2474.7,2474.4,0.78775438]
[1728815902677,4.04094,2474.7,2474.5,0.78775438]
[1728815902873,4.04094,2474.7,2474.6,0.30298245]
[1728815903178,5.14610377,2474.7,2474.6,0.78772779]
[1728815903786,5.14610377,2474.7,2474.6,0.78768006]
[1728815904231,4.04094,2474.7,2474.6,0.78768006]
[1728815904391,5.31360044,2474.8,2474.6,0.78768006]
[1728815904591,5.31360044,2474.8,2474.7,0.30298245]
[1728815905416,5.41183659,2474.8,2474.7,0.30298245]
[1728815906537,4.13897615,2474.8,2474.7,0.30298245]
[1728815907529,5.41183659,2474.8,2474.7,0.30298245]
[1728815908037,4.13897615,2474.8,2474.7,0.30298245]
[1728815908593,4.13896615,2474.8,2474.7,0.30298245]
[1728815909129,4.13896615,2474.8,2474.4,4.88957254]
[1728815909348,4.13896615,2474.8,2474.7,0.30293073]
[1728815909830,4.13896615,2474.8,2474.5,1.27224388]
[1728815910006,4.13896615,2474.8,2474.6,0.48465505]
[1728815910204,0.09823615,2474.8,2474.7,0.30291493]
[1728815910413,0.94803139,2474.8,2474.7,0.78753746]
[1728815910736,0.09823615,2474.8,2474.7,0.78753746]
[1728815911734,5.01381294,2475.0,2474.7,0.78753746]
[1728815912035,5.01381294,2475.0,2474.8,0.30279449]
[1728815912327,5.01381294,2475.0,2474.9,0.30279449]
[1728815912731,5.01381294,2475.0,2474.5,5.3740076]
[1728815912937,5.01381294,2475.0,2474.5,6.61198796]
[1728815913094,5.01381294,2475.0,2474.6,0.30275731]
[1728815913290,5.01381294,2475.0,2474.7,0.30275731]
[1728815913490,9.05430294,2475.0,2474.8,0.30275731]
[1728815913695,9.05430294,2475.0,2474.9,0.30275731]
[1728815914238,5.01381294,2475.0,2474.9,0.30275731]
[1728815915565,5.01381294,2475.0,2474.5,4.04114]
[1728815915719,4.04058,2474.9,2474.6,0.30269281]
[1728815915920,4.04058,2474.9,2474.7,0.30269281]
[1728815916120,4.04058,2474.9,2474.8,0.30269281]
[1728815919444,5.92310058,2474.9,2474.8,0.30269281]
[1728815919644,1.88252058,2474.9,2474.4,0.84820254]
[1728815919969,4.04097,2474.7,2474.5,0.30268107]
[1728815920263,4.04105,2474.6,2474.3,0.84820254]
[1728815920429,4.13581363,2474.6,2474.4,0.30271288]
[1728815920634,4.13581363,2474.6,2474.5,0.30271288]
[1728815923631,4.13581363,2474.6,2474.2,5.29934587]
[1728815923832,4.13581363,2474.6,2474.3,0.30275717]
[1728815924063,4.13581363,2474.6,2474.4,0.30275717]
[1728815924222,4.98560887,2474.6,2474.2,4.45114333]
[1728815924419,4.98560887,2474.6,2474.3,0.30278979]
[1728815924671,4.98560887,2474.6,2474.4,0.30278979]
[1728815924965,4.98560887,2474.6,2474.2,4.45114333]
[1728815925269,4.98560887,2474.6,2474.3,0.30279577]
[1728815925438,4.98560887,2474.6,2474.4,0.30279577]
[1728815925639,4.98560887,2474.6,2474.2,4.45114333]
[1728815925849,4.98560887,2474.6,2474.3,0.30277848]
[1728815926051,4.98560887,2474.6,2474.4,0.30277848]
[1728815926231,4.98560887,2474.6,2474.2,0.40945333]
[1728815926438,4.89084524,2474.6,2474.3,0.30277586]
[1728815926662,0.09480129,2474.5,2474.4,0.30277586]
[1728815934461,0.09480129,2474.5,2474.2,4.45113333]
[1728815934659,0.09480129,2474.5,2474.4,0.30267436]
[1728815936575,8.93169524,2474.7,2474.4,0.30267436]
[1728815936881,0.09478975,2474.5,2474.2,4.45113333]
[1728815937078,8.93169524,2474.7,2474.3,0.30264593]
[1728815937295,0.09476047,2474.4,2474.2,4.45113333]
[1728815937589,4.89093524,2474.6,2474.3,0.30264044]
[1728815937794,4.04123,2474.5,2474.2,0.40945333]
[1728815937997,4.04123,2474.5,2474.3,0.30267597]
[1728815938295,4.04123,2474.5,2474.2,0.40945333]
[1728815938477,4.04123,2474.5,2474.3,0.30266433]
[1728815938789,4.89084524,2474.6,2474.2,0.40945333]
[1728815938989,4.89084524,2474.6,2474.3,0.30266221]
[1728815939191,4.89084524,2474.6,2474.2,0.40945333]
[1728815939349,4.89084524,2474.6,2474.3,0.30265246]
[1728815939544,4.89084524,2474.6,2474.2,0.40945333]
[1728815939745,4.89084524,2474.6,2474.3,0.30265236]
[1728815939963,4.89084524,2474.6,2474.2,0.40945333]
[1728815940163,0.84979524,2474.6,2474.3,0.30265072]
[1728815940374,4.04123,2474.5,2474.2,0.40945333]
[1728815940546,8.08253,2474.5,2474.3,0.30264206]
[1728815940746,8.08253,2474.5,2474.2,0.40945333]
[1728815940747,5.91150581,2474.5,2474.2,0.40945333]
[1728815940964,4.04149,2474.4,2474.2,0.40945333]
[1728815943993,4.89128524,2474.4,2473.9,8.08422]
[1728815944301,4.89128524,2474.4,2474.0,1.08636842]
[1728815944461,4.89128524,2474.4,2474.0,0.7837]
[1728815944689,4.89128524,2474.4,2474.0,4.82572]
[1728815946547,5.68912524,2474.5,2474.0,4.82572]
[1728815947399,4.04155,2474.3,2473.8,0.7837]
[1728815947599,4.83981,2474.2,2473.9,0.30260526]
[1728815947800,4.83981,2474.2,2473.8,4.82603]
[1728815947997,4.83981,2474.2,2473.9,0.30263197]
[1728815948203,4.04188,2474.1,2473.6,4.8263]
[1728815948440,4.04188,2474.1,2473.7,0.30268352]
[1728815948643,4.04188,2474.1,2473.6,8.86891]
[1728815948851,4.04188,2474.1,2473.7,0.30261102]
[1728815949142,4.04209,2474.0,2473.6,0.7837]
[1728815950417,0.09114885,2473.9,2473.6,4.82637]
[1728815952446,0.84254885,2473.9,2473.6,0.7837]
[1728815952748,4.88480885,2473.9,2473.5,4.04283]
[1728815956017,4.04244,2473.8,2473.4,0.752]
[1728815956242,4.79404,2473.7,2473.2,7.04332]
[1728815956441,4.88499775,2473.7,2473.3,4.04316]
[1728815956629,4.88499775,2473.7,2473.2,4.04334]
[1728815956814,5.86700861,2473.7,2473.1,4.79541]
[1728815957013,4.04277,2473.6,2473.1,8.83883]
[1728815957354,4.13372154,2473.6,2473.1,8.83883]
[1728815957647,4.13372154,2473.6,2473.1,4.79541]
[1728815958212,8.17649154,2473.6,2473.1,4.79541]
[1728815958621,9.16748178,2473.6,2473.1,4.79541]
[1728815963167,5.12471178,2473.6,2473.1,4.79541]
[1728815963339,8.17650154,2473.6,2473.1,4.79541]
[1728815963755,8.17651154,2473.6,2473.1,4.79541]
[1728815964165,4.13372154,2473.6,2473.2,4.04334]
[1728815964471,0.09095154,2473.6,2473.2,4.04334]
[1728815964769,0.09095154,2473.6,2473.3,4.04315]
[1728815964977,0.09095154,2473.6,2473.3,4.926999]
[1728815965334,0.09095154,2473.6,2473.4,0.752]
[1728815969778,0.09095154,2473.6,2473.3,0.883849]
[1728815970074,0.09095154,2473.6,2473.2,4.79533]
[1728815970829,4.13373154,2473.6,2473.2,0.752]
[1728815971060,4.79436,2473.5,2473.0,4.04355]
[1728815971269,4.88211728,2473.5,2473.0,8.08711]
[1728815971497,4.88211728,2473.5,2473.0,8.971021]
[1728815972100,4.88211728,2473.5,2473.0,4.927461]
[1728815972277,4.88211728,2473.5,2473.1,4.04345]
[1728815973200,0.83915728,2473.5,2472.9,0.752]
[1728815973413,0.777,2473.4,2472.8,4.04391]
[1728815973578,0.777,2473.1,2472.7,0.7591]
[1728815973777,4.1311955,2473.0,2472.5,0.7591]
[1728815973976,4.1311955,2473.0,2472.5,4.80357]
[1728815974169,4.0437,2473.0,2472.5,4.80357]
[1728815974371,0.08742488,2472.9,2472.5,4.80357]
[1728815974566,4.13126488,2472.9,2472.5,4.80357]
[1728815974788,0.08742488,2472.9,2472.5,4.80357]
[1728815974963,4.13130488,2472.9,2472.5,4.80357]
[1728815975515,0.08742488,2472.9,2472.5,4.80357]
[1728815975681,0.08742488,2472.9,2472.5,5.988407]
[1728815977605,0.08742488,2472.9,2472.6,4.04431]
[1728815977794,0.08742488,2472.9,2472.5,5.988407]
[1728815977997,0.08742488,2472.9,2472.5,10.032797]
[1728815978385,0.08742488,2472.9,2472.5,5.988327]
[1728815979469,0.08742488,2472.9,2472.5,4.80349]
[1728815981182,0.777,2472.8,2472.5,4.04439]
[1728815981387,0.08730898,2472.7,2472.5,4.04439]
[1728815981582,0.777,2472.8,2472.5,4.04439]
[1728815981899,0.08729743,2472.7,2472.5,4.04439]
[1728815982408,0.08727966,2472.6,2472.5,4.04439]
[1728815982614,0.777,2472.8,2472.5,4.04439]
[1728815982809,0.08727966,2472.6,2472.5,4.04439]
[1728815983012,0.777,2472.8,2472.5,4.04439]
[1728815983323,0.08727966,2472.6,2472.5,4.04439]
[1728815983477,0.777,2472.8,2472.5,4.04439]
[1728815983672,0.08727966,2472.6,2472.5,4.04439]
[1728815984188,0.777,2472.8,2472.5,4.04439]
[1728815984489,0.08727966,2472.6,2472.5,8.0888]
[1728815984684,0.777,2472.8,2472.5,8.0888]
[1728815984903,0.777,2472.8,2472.5,4.04439]
[1728815984904,0.08727966,2472.6,2472.5,4.04439]
[1728815985088,0.777,2472.8,2472.5,4.04439]
[1728815985292,0.08727966,2472.6,2472.5,4.04439]
[1728815985477,0.777,2472.8,2472.5,4.04439]
[1728815985682,0.08727966,2472.6,2472.5,4.04439]
[1728815985978,0.777,2473.1,2472.6,4.04424]
[1728815986181,0.08739693,2473.0,2472.7,4.04407]
[1728815986376,0.08739693,2473.0,2472.8,4.04399]
[1728815986788,4.8202,2473.3,2472.8,4.04399]
[1728815986996,6.437533,2473.3,2472.9,4.04383]
[1728815989607,2.394333,2473.3,2472.9,4.04383]
[1728815989780,0.777,2473.3,2472.9,4.04383]
[1728815991425,0.777,2473.3,2472.9,8.08756]
[1728815991626,0.777,2473.3,2472.9,8.84666]
[1728815991773,0.777,2473.7,2472.9,0.7591]
[1728815991978,0.777,2473.7,2473.2,4.04333]
[1728815991979,4.81962,2473.7,2473.2,4.04333]
[1728815992226,5.91809357,2473.7,2473.2,4.04333]
[1728815992824,5.91809357,2473.7,2473.2,8.08666]
[1728815993112,5.91809357,2473.7,2473.2,4.04333]
[1728815993717,5.91809357,2473.7,2473.2,4.04326]
[1728815993921,4.8491,2473.6,2473.2,4.04326]
[1728815994492,9.97589288,2473.6,2473.1,4.34590539]
[1728815994823,9.97589288,2473.6,2473.1,4.04347]
[1728815995381,0.08444114,2473.5,2473.1,4.04347]
[1728815996079,0.08444114,2473.5,2473.1,4.34602003]
[1728815996876,0.08444114,2473.5,2473.1,4.04347]
[1728815997822,0.08444114,2473.5,2473.1,4.3461234]
[1728815998018,0.08444114,2473.5,2473.1,4.04347]
[1728815998420,0.08444114,2473.5,2473.2,0.30266922]
[1728815998638,0.08444114,2473.5,2473.1,4.04347]
[1728816000045,0.08444114,2473.5,2473.2,0.30271243]
[1728816000256,0.08444114,2473.5,2473.1,4.04347]
[1728816000609,0.08444114,2473.5,2473.2,0.30276465]
[1728816000805,0.08444114,2473.5,2473.1,4.04347]
[1728816001353,0.08444114,2473.5,2473.2,0.3028169]
[1728816001560,0.08444114,2473.5,2473.1,4.04347]
[1728816001714,0.08444114,2473.5,2473.2,0.3028173]
[1728816001915,0.08444114,2473.5,2473.1,4.04347]
[1728816002259,0.08444114,2473.5,2473.2,0.30281488]
[1728816002463,0.08444114,2473.5,2473.1,4.04347]
[1728816002669,0.08444114,2473.5,2473.2,0.30282891]
[1728816002871,0.08444114,2473.5,2473.1,4.9765377]
[1728816003038,0.08444114,2473.5,2473.2,0.30282829]
[1728816003226,0.08444114,2473.5,2473.1,4.9765377]
[1728816003426,0.08444114,2473.5,2473.2,0.30283085]
[1728816003621,0.08444114,2473.5,2473.1,4.9765377]
[1728816003856,0.08444114,2473.5,2473.2,0.30282757]
[1728816004066,0.08444114,2473.5,2473.1,4.9765377]
[1728816004366,0.08444114,2473.5,2473.2,0.3028491]
[1728816004550,0.08444114,2473.5,2473.1,4.9765377]
[1728816004750,0.08444114,2473.5,2473.2,0.30285573]
[1728816004951,0.08444114,2473.5,2473.1,4.9765377]
[1728816005154,0.08444114,2473.5,2473.2,0.30285029]
[1728816005466,0.08444114,2473.5,2473.1,4.9765377]
[1728816005637,0.08444114,2473.5,2473.2,0.30284084]
[1728816005840,0.08444114,2473.5,2473.1,4.9765377]
[1728816006135,0.08444114,2473.5,2473.2,0.30283883]
[1728816006336,0.08444114,2473.5,2473.1,4.9765377]
[1728816006541,0.08444114,2473.5,2473.2,0.30283512]
[1728816006744,0.08444114,2473.5,2473.1,4.9765377]
[1728816007220,0.08444114,2473.5,2473.2,4.34615418]
[1728816007426,0.08444114,2473.5,2473.2,4.04332]
[1728816008971,0.08444114,2473.5,2473.2,4.04326]
[1728816009132,0.08444114,2473.5,2473.3,4.04317]
[1728816009328,0.08444114,2473.5,2473.2,4.57006032]
[1728816009528,0.08444114,2473.5,2473.3,0.30279599]
[1728816009883,0.08444114,2473.5,2473.2,4.57006032]
[1728816010170,0.08444114,2473.5,2473.3,0.30279757]
[1728816010368,0.08444114,2473.5,2473.2,4.57006032]
[1728816010733,0.08444114,2473.5,2473.2,8.61333032]
[1728816011662,0.08444114,2473.5,2473.2,4.57006032]
[1728816011864,0.08444114,2473.5,2473.2,4.04326]
[1728816012359,0.08444114,2473.5,2473.3,0.30281982]
[1728816012544,0.08444114,2473.5,2473.2,4.04326]
[1728816012876,0.08444114,2473.5,2473.3,0.30284122]
[1728816013175,0.08444114,2473.5,2473.2,4.04326]
[1728816013475,0.08444114,2473.5,2473.3,4.34600274]
[1728816013673,0.08444114,2473.5,2473.3,4.04314]
[1728816026111,0.08444114,2473.5,2473.2,0.7769]
[1728816026405,0.08444114,2473.5,2473.3,0.30291378]
[1728816026623,0.08444114,2473.5,2473.2,4.82021]
[1728816026836,0.08444114,2473.5,2473.3,0.30294051]
[1728816027038,0.08444114,2473.5,2473.2,4.82021]
[1728816027249,0.08444114,2473.5,2473.3,0.3029395]
[1728816027578,4.12737114,2473.5,2473.0,5.66862254]
[1728816027775,0.7852,2473.4,2473.1,0.78774872]
[1728816028087,0.7852,2473.4,2473.2,0.30298028]
[1728816028088,0.08165642,2473.3,2473.2,0.30298028]
[1728816029593,0.08165642,2473.3,2473.2,0.30310262]
[1728816031359,0.08165642,2473.3,2473.2,0.78827447]
[1728816032057,0.19274638,2473.3,2473.2,0.78827447]
[1728816038212,4.95027359,2473.3,2473.2,0.78827447]
[1728816038407,6.99543403,2473.3,2473.2,0.30310262]
[1728816038593,6.57289143,2473.3,2473.2,0.30310262]
[1728816038803,6.57289143,2473.3,2472.8,0.84820254]
[1728816038804,0.7723,2472.9,2472.8,0.84820254]
[1728816039014,0.7723,2472.9,2472.8,0.7893657]
[1728816039181,0.96493979,2472.9,2472.8,0.7893657]
[1728816039526,0.96493979,2472.9,2472.8,0.30360219]
[1728816039720,1.67810617,2472.9,2472.8,0.30360219]
[1728816040427,5.72193617,2472.9,2472.8,0.30354021]
[1728816041316,5.72193617,2472.9,2472.5,4.04438]
[1728816041622,5.72193617,2472.9,2472.6,0.30331795]
[1728816041825,5.72193617,2472.9,2472.7,0.30331795]
[1728816042131,5.72193617,2472.9,2472.5,4.04438]
[1728816042282,5.00876979,2472.9,2472.6,0.30331149]
[1728816042621,0.96493979,2472.9,2472.7,0.30331149]
[1728816042825,0.96493979,2472.9,2472.5,4.04438]
[1728816042981,0.96493979,2472.9,2472.6,0.30323829]
[1728816043321,0.96493979,2472.9,2472.7,0.30323829]
[1728816043476,0.96493979,2472.9,2472.6,0.48506041]
[1728816043680,0.96493979,2472.9,2472.7,0.30316386]
[1728816043898,0.96493979,2472.9,2472.5,4.04436]
[1728816044181,0.96493979,2472.9,2472.6,4.34746013]
[1728816044603,0.96493979,2472.9,2472.7,0.30314908]
[1728816044822,0.96493979,2472.9,2472.6,4.0443]
[1728816044986,0.96493979,2472.9,2472.7,0.30311396]
[1728816045189,0.96493979,2472.9,2472.6,4.0443]
[1728816045422,0.96493979,2472.9,2472.7,0.30306866]
[1728816045588,0.96493979,2472.9,2472.6,4.0443]
[1728816045787,0.96493979,2472.9,2472.7,0.30307214]
[1728816045983,0.96493979,2472.9,2472.6,4.0443]
[1728816046182,0.96493979,2472.9,2472.7,0.30307248]
[1728816046390,0.96493979,2472.9,2472.6,4.0443]
[1728816046597,0.96493979,2472.9,2472.7,4.34713409]
[1728816046825,0.96493979,2472.9,2472.7,4.04409]
[1728816049507,0.96493979,2472.9,2472.7,8.08816]
[1728816049707,0.96493979,2472.9,2472.7,4.04407]
[1728816049914,0.96493979,2472.9,2472.6,0.62293185]
[1728816050109,0.96493979,2472.9,2472.7,0.30288775]
[1728816050434,0.96493979,2472.9,2472.6,4.66725185]
[1728816051198,0.96493979,2472.9,2472.6,0.62293185]
[1728816051439,0.96493979,2472.9,2472.6,0.30282501]
[1728816051809,0.96493979,2472.9,2472.5,4.04436]
[1728816053238,0.96493979,2472.9,2472.6,0.30275294]
[1728816053443,0.96493979,2472.9,2472.5,4.97825057]
[1728816053623,0.96493979,2472.9,2472.6,0.30271844]
[1728816054215,0.96493979,2472.9,2472.5,4.97825057]
[1728816054544,0.96493979,2472.9,2472.6,4.34684068]
[1728816054846,0.96493979,2472.9,2472.7,0.30265068]
[1728816055037,0.96493979,2472.9,2472.6,4.04419]
[1728816055222,0.96493979,2472.9,2472.7,0.30263824]
[1728816055543,0.96493979,2472.9,2472.6,4.04419]
[1728816055897,0.96493979,2472.9,2472.7,0.30263724]
[1728816056102,0.96493979,2472.9,2472.6,4.04419]
[1728816056303,0.96493979,2472.9,2472.7,0.3026435]
[1728816056504,0.96493979,2472.9,2472.6,4.04419]
[1728816056806,0.96493979,2472.9,2472.7,0.30264248]
[1728816057048,0.96493979,2472.9,2472.6,4.04419]
[1728816057217,0.96493979,2472.9,2472.7,0.30264081]
[1728816057576,0.96493979,2472.9,2472.6,4.04419]
[1728816057700,0.96493979,2472.9,2472.7,0.30264789]
[1728816057896,0.96493979,2472.9,2472.6,4.04419]
[1728816058138,0.96493979,2472.9,2472.7,0.30264792]
[1728816058341,0.96493979,2472.9,2472.6,4.04419]
[1728816058618,0.96493979,2472.9,2472.7,0.30264991]
[1728816058826,0.96493979,2472.9,2472.6,4.04419]
[1728816059017,0.96493979,2472.9,2472.7,0.30265605]
[1728816059418,0.96493979,2472.9,2472.6,4.04419]
[1728816059959,0.96493979,2472.9,2472.7,0.60530907]
[1728816060456,0.96493979,2472.9,2472.7,0.60531553]
[1728816061018,0.96493979,2472.9,2472.7,0.30265821]
[1728816068061,0.96493979,2472.9,2472.6,4.04419]
[1728816070876,0.96493979,2472.9,2472.7,0.60563793]
[1728816071181,0.96493979,2472.9,2472.8,0.30281875]
[1728816072772,0.96493979,2472.9,2472.7,0.30281918]
[1728816072979,0.96493979,2472.9,2472.8,0.3028941]
[1728816076675,0.96493979,2472.9,2472.8,0.30301289]
[1728816078070,0.96493979,2472.9,2472.8,0.30304334]
[1728816079984,0.96493979,2472.9,2472.8,0.30314041]
[1728816080347,0.96493979,2472.9,2472.8,0.78824799]
[1728816083560,0.96493979,2472.9,2472.6,4.89239254]
[1728816083561,0.96493979,2472.9,2472.7,0.84820254]
[1728816083973,0.96493979,2472.9,2472.8,0.78889578]
[1728816087405,0.96493979,2472.9,2472.8,0.48553742]
[1728816087630,0.96493979,2472.9,2472.8,0.78899831]
[1728816088199,0.96493979,2472.9,2472.8,0.78903994]
[1728816094720,0.96493979,2472.9,2472.8,0.48556304]
[1728816095026,0.96493979,2472.9,2472.8,0.78916888]
[1728816095681,0.96493979,2472.9,2472.8,0.78917278]
[1728816098129,5.00876979,2472.9,2472.8,0.78917278]
[1728816098292,5.00876979,2472.9,2472.8,0.78928393]
[1728816101310,5.85973653,2472.9,2472.8,0.78928393]
[1728816105543,5.00876979,2472.9,2472.8,0.78928393]
[1728816105985,5.00876979,2472.9,2472.8,0.30357074]
[1728816106182,5.00876979,2472.9,2472.8,0.7891147]
[1728816112660,5.00876979,2472.9,2472.8,0.30350565]
[1728816112863,5.00876979,2472.9,2472.8,0.78901914]
[1728816117081,5.00876979,2472.9,2472.8,0.78900926]
[1728816117232,5.00876979,2472.9,2472.7,0.84820254]
[1728816117430,5.00876979,2472.9,2472.8,0.78900609]
[1728816120145,6.12639749,2472.9,2472.8,0.78900609]
[1728816120348,7.39925793,2472.9,2472.8,0.30346388]
[1728816120682,7.39925793,2472.9,2472.4,0.84820254]
[1728816120683,4.04432,2472.6,2472.4,0.84820254]
[1728816120977,4.84852,2472.6,2472.5,0.30361382]